fUSD/lending_fUSD_20241121
["ID","MTS","AMOUNT","RATE_DAILY","PERIOD"]
[342952521,1732217489654,-500.0,0.00036574,15]
[342952522,1732217489663,-500.0,0.00036574,15]
[342952523,1732217489675,-500.0,0.00036574,15]
[342952524,1732217489684,-500.0,0.00036574,15]
[342952525,1732217489694,-500.0,0.00036574,15]
[342952526,1732217489703,-500.0,0.00036574,15]
[342952527,1732217489713,-500.0,0.00036574,15]
[342952528,1732217489722,-500.0,0.00036574,15]
[342952529,1732217489731,-500.0,0.00036574,15]
[342952530,1732217489740,-500.0,0.00036574,15]
[342952531,1732217489750,-500.0,0.00036574,15]
[342952532,1732217489759,-500.0,0.00036574,15]
[342952533,1732217489768,-500.0,0.00036574,15]
[342952534,1732217489781,-519.7997071,0.00036574,15]
[342952535,1732217489790,-500.0,0.00036574,15]
[342952536,1732217489800,-500.0,0.00036574,15]
[342952537,1732217489809,-500.0,0.00036574,15]
[342952538,1732217489819,-500.0,0.00036574,15]
[342952539,1732217489829,-500.0,0.00036574,15]
[342952540,1732217489838,-500.0,0.00036574,15]
[342952541,1732217489850,-1162.0,0.00040566,2]
[342952542,1732217489859,-500.0,0.00042465,11]
[342952543,1732217489869,-500.0,0.00042739,11]
[342952544,1732217489879,-500.0,0.00043013,11]
[342952545,1732217489889,-500.0,0.00043287,11]
[342952546,1732217489898,-500.0,0.00043561,11]
[342952547,1732217489908,-1162.0,0.00043566,2]
[342952548,1732217489921,-585.14867481,0.00043835,11]
[342952549,1732217489931,-160.27137806,0.00044493,28]
[342952550,1732217489941,-1162.0,0.00046566,2]
[342952551,1732217489951,-40839.93435329,0.00048,60]
[342952552,1732217489964,-332240.47785925,0.00048,60]
[342952553,1732217489976,-76416.8391005,0.00048,60]
[342952554,1732217489987,-1301864.17768778,0.00048,60]
[342952555,1732217489998,-1052.27134233,0.00048,60]
[342952556,1732217490010,-5096.434566,0.00048,60]
[342952557,1732217490021,-4670.76175167,0.00048,60]
[342952558,1732217490032,-328.01300429,0.00048,60]
[342952559,1732217490043,-8836.00287764,0.00048,60]
[342952560,1732217490054,-6207.4156874,0.00048,60]
[342952561,1732217490067,-33852.33714836,0.00048,60]
[342952562,1732217490078,-14760.49194292,0.00048,60]
[342952563,1732217490200,-472.37,0.00036566,10]
[342952564,1732217490209,-500.0,0.00039177,11]
[342952565,1732217490218,-160.27137806,0.00046096,28]
[342952566,1732217490227,-867.35862194,0.00048,60]
[342952567,1732217490238,-538151.50071865,0.00048,60]
[342952568,1732217490250,-250.4339316,0.00048,60]
[342952569,1732217490261,-5123713.10076319,0.00048,60]
[342952570,1732217490340,-1487.74655706,0.00048,60]
[342952571,1732217490352,-25125.2710954,0.00048,60]
[342952572,1732217490363,-370580.97075918,0.00048,60]
[342952573,1732217490378,-500.0,0.00039177,11]
[342952574,1732217490387,-307.31,0.00048,60]
[342952575,1732217490402,-2390.7038645,0.00048,60]
[342952576,1732217490412,-2342.82999998,0.00048,60]
[342952577,1732217490572,-500.0,0.00038356,11]
[342952578,1732217490581,-252.76444999,0.00038356,11]
[342952579,1732217490591,-1006.0,0.000423,7]
[342952580,1732217490600,-3822.57155263,0.00048,60]
[342952581,1732217490692,-500.0,0.00038356,11]
[342952582,1732217490840,-236.512,0.00038356,11]
[342952583,1732217490857,-292.11076977,0.00038356,11]
[342952584,1732217490867,-565.24,0.0003863,11]
[342952585,1732217490876,-500.0,0.00039177,11]
[342952586,1732217490885,-160.27137806,0.000477,28]
[342952587,1732217490894,-782373.61673551,0.00048,60]
[342952588,1732217490932,-3909.35196941,0.00048,60]
[342952589,1732217490944,-287.52084911,0.00048,60]
[342952590,1732217490956,-8793.65099086,0.00048,60]
[342952591,1732217491024,-31308.706405,0.00048,60]
[342952592,1732217491035,-49317.17512398,0.00048,60]
[342952593,1732217491106,-325.73182297,0.00036476,2]
[342952594,1732217491115,-500.0,0.00038356,11]
[342952595,1732217491124,-500.0,0.00038356,11]
[342952596,1732217491134,-309.74,0.0003863,11]
[342952597,1732217491143,-500.0,0.00039177,11]
[342952598,1732217491153,-300.0,0.00040223,2]
[342952599,1732217491162,-485249.72378692,0.00048,60]
[342952600,1732217491177,-579611.88353063,0.00048,60]
[342952601,1732217491188,-769.97648799,0.00048,60]
[342952602,1732217491199,-597.25,0.00048,60]
[342952603,1732217491211,-24716.1837,0.00048,60]
[342952604,1732217491221,-393.41619849,0.00048,60]
[342952605,1732217491233,-24630.6193614,0.00048,60]
[342952606,1732217491245,-2817.77752959,0.00048,60]
[342952607,1732217491365,-197342.65509364,0.00048,60]
[342952608,1732217583794,184.54,0.00026986,120]
[342952609,1732217586320,217.6285,0.0002348,2]
[342952610,1732217633158,500.0,0.00024932,2]
[342952611,1732218068695,194.37,0.00015342,2]
[342952612,1732218068932,194.37,0.00021745,2]
[342952613,1732218069152,194.37,0.00028147,2]
[342952614,1732218177843,16922.9273525,0.0003,2]
[342952615,1732218230134,500.0,0.00024932,2]
[342952616,1732218441082,161.99,0.00029186,2]
[342952617,1732218482813,215.68,0.00029026,2]
[342952620,1732218557975,500.0,0.0003,120]
[342952625,1732218632987,-250.0,0.00031,2]
[342952626,1732218632997,-450.0,0.00031,120]
[342952627,1732218633007,-500.0,0.00032,120]
[342952628,1732218633016,-609.03779596,0.00032895,2]
[342952629,1732218633026,-217.6285,0.00032995,2]
[342952630,1732218633036,-300.0,0.00033,2]
[342952631,1732218633045,-300.0,0.00033,120]
[342952632,1732218633055,-500.0,0.00034,120]
[342952633,1732218633065,-150.0,0.00034069,2]
[342952634,1732218633075,-150.0,0.00034548,10]
[342952635,1732218633085,-194.37,0.00034549,2]
[342952636,1732218633099,-350.0,0.00035,2]
[342952637,1732218633109,-150.0,0.00035068,2]
[342952638,1732218633119,-1710.1,0.000351,2]
[342952639,1732218633128,-500.0,0.00036,120]
[342952640,1732218633139,-1000.0,0.00036149,2]
[342952641,1732218633148,-250.0,0.00036216,2]
[342952642,1732218633158,-1397.08,0.00036264,2]
[342952643,1732218633172,-150.0,0.00036264,2]
[342952644,1732218633181,-200.0,0.00036385,2]
[342952645,1732218633191,-1460.05,0.00036475,2]
[342952646,1732218633201,-355.0,0.00036496,3]
[342952647,1732218633211,-400.0,0.00036496,2]
[342952648,1732218633221,-23900.0,0.00036497,2]
[342952649,1732218633230,-200.0,0.00036536,2]
[342952650,1732218633240,-2252.2275,0.00036554,2]
[342952651,1732218633250,-500.0,0.00036654,2]
[342952652,1732218633261,-165.58,0.00036654,2]
[342952653,1732218633271,-1700.7,0.00036658,2]
[342952654,1732218633281,-250.0,0.00036734,120]
[342952655,1732218633290,-403.05,0.00036803,120]
[342952656,1732218633300,-201.0,0.0003687,30]
[342952657,1732218633309,-11259.87,0.00036917,2]
[342952658,1732218633318,-794.41,0.00036926,120]
[342952660,1732218633328,-250.0,0.00036926,2]
[342952661,1732218633338,-400.0,0.00037,2]
[342952662,1732218633348,-150.0,0.00037002,4]
[342952663,1732218633358,-610.3,0.00037095,2]
[342952664,1732218633367,-500.0,0.00037234,2]
[342952665,1732218633377,-1000.0,0.000373,15]
[342952666,1732218633386,-150.43,0.00037339,2]
[342952667,1732218633395,-1710.1,0.00037364,2]
[342952668,1732218633404,-690.35,0.00037461,2]
[342952669,1732218633416,-214.35,0.00037529,2]
[342952670,1732218633426,-629.7,0.0003762,120]
[342952671,1732218633435,-23678.0,0.00037676,2]
[342952672,1732218633445,-1215.729,0.0003778,49]
[342952674,1732218633454,-201.0,0.0003799,30]
[342952676,1732218633463,-500.0,0.00038,120]
[342952678,1732218633473,-233.09273661,0.00038,7]
[342952679,1732218633482,-167.3533,0.00038052,2]
[342952680,1732218633491,-1009.8197,0.00038052,2]
[342952681,1732218633501,-3454.7484,0.00038052,2]
[342952682,1732218633509,-1444.9632,0.00038053,2]
[342952683,1732218633518,-332.75,0.00038142,10]
[342952684,1732218633527,-815.61888054,0.0003815,15]
[342952685,1732218633536,-9835.97692952,0.0003815,15]
[342952686,1732218633545,-95116.1826,0.00038152,2]
[342952687,1732218633555,-2500.0,0.00038171,2]
[342952688,1732218633564,-5000.0,0.00038251,2]
[342952689,1732218633573,-973.1805,0.00038253,2]
[342952690,1732218633583,-8961.2208,0.00038253,2]
[342952691,1732218633592,-1586.8524,0.00038253,2]
[342952692,1732218633602,-1570.7007,0.00038254,2]
[342952693,1732218633612,-970.068,0.00038255,2]
[342952694,1732218633622,-1584.5731,0.00038255,2]
[342952695,1732218633631,-500.0,0.00038256,2]
[342952696,1732218633640,-355.99538422,0.00038256,10]
[342952697,1732218633649,-353.87104791,0.00038256,2]
[342952698,1732218633658,-572.54041661,0.0003827,15]
[342952699,1732218633669,-500.0,0.0003827,15]
[342952700,1732218633678,-500.0,0.0003827,15]
[342952701,1732218633687,-500.0,0.0003827,15]
[342952702,1732218633696,-500.0,0.0003827,15]
[342952703,1732218633705,-500.0,0.0003827,15]
[342952704,1732218633714,-500.0,0.0003827,15]
[342952705,1732218633723,-500.0,0.0003827,15]
[342952706,1732218633732,-500.0,0.0003827,15]
[342952707,1732218633741,-425.26096929,0.0003827,15]
[342952708,1732218633750,-500.0,0.0003827,15]
[342952709,1732218633759,-500.0,0.0003827,15]
[342952710,1732218633767,-500.0,0.0003827,15]
[342952711,1732218633777,-500.0,0.0003827,15]
[342952712,1732218633786,-500.0,0.0003827,15]
[342952713,1732218633795,-500.0,0.0003827,15]
[342952714,1732218633804,-500.0,0.0003827,15]
[342952715,1732218633813,-500.0,0.0003827,15]
[342952716,1732218633822,-500.0,0.0003827,15]
[342952717,1732218633831,-500.0,0.0003827,15]
[342952718,1732218633840,-500.0,0.0003827,15]
[342952719,1732218633850,-500.0,0.0003827,15]
[342952720,1732218633863,-500.0,0.0003827,15]
[342952721,1732218633872,-500.0,0.0003827,15]
[342952722,1732218633882,-500.0,0.0003827,15]
[342952723,1732218633891,-500.0,0.0003827,15]
[342952724,1732218633902,-500.0,0.0003827,15]
[342952725,1732218633911,-500.0,0.0003827,15]
[342952726,1732218633923,-500.0,0.0003827,15]
[342952727,1732218633932,-500.0,0.0003827,15]
[342952728,1732218633941,-500.0,0.0003827,15]
[342952729,1732218633950,-500.0,0.0003827,15]
[342952730,1732218633959,-500.0,0.0003827,15]
[342952731,1732218633968,-500.0,0.0003827,15]
[342952732,1732218633978,-500.0,0.0003827,15]
[342952733,1732218633987,-500.0,0.0003827,15]
[342952734,1732218633997,-500.0,0.0003827,15]
[342952735,1732218634007,-500.0,0.0003827,15]
[342952736,1732218634017,-500.0,0.0003827,15]
[342952737,1732218634027,-500.0,0.0003827,15]
[342952738,1732218634037,-500.0,0.0003827,15]
[342952739,1732218634047,-500.0,0.0003827,15]
[342952740,1732218634057,-500.0,0.0003827,15]
[342952741,1732218634068,-500.0,0.0003827,15]
[342952742,1732218634078,-500.0,0.0003827,15]
[342952743,1732218634089,-500.0,0.0003827,15]
[342952744,1732218634102,-500.0,0.0003827,15]
[342952745,1732218634112,-500.0,0.0003827,15]
[342952746,1732218634122,-500.0,0.0003827,15]
[342952747,1732218634132,-500.0,0.0003827,15]
[342952748,1732218634143,-500.0,0.0003827,15]
[342952749,1732218634154,-500.0,0.0003827,15]
[342952750,1732218634167,-500.0,0.0003827,15]
[342952751,1732218634177,-500.0,0.0003827,15]
[342952752,1732218634187,-500.0,0.0003827,15]
[342952753,1732218634197,-196.91556413,0.0003827,15]
[342952754,1732218634207,-500.0,0.0003827,15]
[342952755,1732218634217,-500.0,0.0003827,15]
[342952756,1732218634227,-500.0,0.0003827,15]
[342952757,1732218634237,-500.0,0.0003827,15]
[342952758,1732218634248,-500.0,0.0003827,15]
[342952759,1732218634258,-500.0,0.0003827,15]
[342952760,1732218634268,-500.0,0.0003827,15]
[342952761,1732218634278,-500.0,0.0003827,15]
[342952762,1732218634288,-500.0,0.0003827,15]
[342952763,1732218634302,-500.0,0.0003827,15]
[342952764,1732218634313,-500.0,0.0003827,15]
[342952765,1732218634323,-500.0,0.0003827,15]
[342952766,1732218634334,-500.0,0.0003827,15]
[342952767,1732218634344,-500.0,0.0003827,15]
[342952768,1732218634355,-500.0,0.0003827,15]
[342952769,1732218634365,-500.0,0.0003827,15]
[342952770,1732218634374,-500.0,0.0003827,15]
[342952771,1732218634384,-500.0,0.0003827,15]
[342952772,1732218634394,-500.0,0.0003827,15]
[342952773,1732218634404,-500.0,0.0003827,15]
[342952774,1732218634417,-500.0,0.0003827,15]
[342952775,1732218634427,-500.0,0.0003827,15]
[342952776,1732218634437,-500.0,0.0003827,15]
[342952777,1732218634447,-500.0,0.0003827,15]
[342952778,1732218634457,-500.0,0.0003827,15]
[342952779,1732218634468,-500.0,0.0003827,15]
[342952780,1732218634478,-500.0,0.0003827,15]
[342952781,1732218634488,-591.92045497,0.0003827,15]
[342952782,1732218634499,-500.0,0.0003827,15]
[342952783,1732218634509,-500.0,0.0003827,15]
[342952784,1732218634519,-500.0,0.0003827,15]
[342952785,1732218634529,-500.0,0.0003827,15]
[342952786,1732218634538,-500.0,0.0003827,15]
[342952787,1732218634548,-500.0,0.0003827,15]
[342952788,1732218634557,-500.0,0.0003827,15]
[342952789,1732218634567,-500.0,0.0003827,15]
[342952790,1732218634577,-500.0,0.0003827,15]
[342952791,1732218634587,-500.0,0.0003827,15]
[342952792,1732218634596,-500.0,0.0003827,15]
[342952793,1732218634606,-500.0,0.0003827,15]
[342952794,1732218634616,-500.0,0.0003827,15]
[342952795,1732218634625,-500.0,0.0003827,15]
[342952796,1732218634635,-500.0,0.0003827,15]
[342952797,1732218634644,-500.0,0.0003827,15]
[342952798,1732218634655,-500.0,0.0003827,15]
[342952799,1732218634666,-500.0,0.0003827,15]
[342952800,1732218634675,-500.0,0.0003827,15]
[342952801,1732218634685,-765.58202181,0.0003827,15]
[342952802,1732218634694,-765.58202181,0.0003827,15]
[342952803,1732218634704,-765.58202181,0.0003827,15]
[342952804,1732218634713,-765.58202181,0.0003827,15]
[342952805,1732218634722,-765.58202181,0.0003827,15]
[342952806,1732218634732,-765.58202181,0.0003827,15]
[342952807,1732218634742,-765.58202181,0.0003827,15]
[342952808,1732218634751,-765.58202181,0.0003827,15]
[342952809,1732218634761,-765.58202181,0.0003827,15]
[342952810,1732218634770,-765.58202181,0.0003827,15]
[342952811,1732218634779,-765.58202181,0.0003827,15]
[342952812,1732218634790,-765.58202181,0.0003827,15]
[342952813,1732218634800,-765.58202181,0.0003827,15]
[342952814,1732218634809,-765.58202181,0.0003827,15]
[342952815,1732218634818,-765.58202181,0.0003827,15]
[342952816,1732218634828,-765.58202181,0.0003827,15]
[342952817,1732218634837,-765.58202181,0.0003827,15]
[342952818,1732218634847,-1565.37195859,0.0003827,15]
[342952819,1732218634857,-765.58202181,0.0003827,15]
[342952820,1732218634867,-1565.37195859,0.0003827,15]
[342952821,1732218634876,-765.58202181,0.0003827,15]
[342952822,1732218634886,-1565.37195859,0.0003827,15]
[342952823,1732218634896,-1565.37195859,0.0003827,15]
[342952824,1732218634906,-765.58202181,0.0003827,15]
[342952825,1732218634917,-1565.37195859,0.0003827,15]
[342952826,1732218634926,-765.58202181,0.0003827,15]
[342952827,1732218634936,-1565.37195859,0.0003827,15]
[342952828,1732218634946,-765.58202181,0.0003827,15]
[342952829,1732218634956,-1565.37195859,0.0003827,15]
[342952830,1732218634965,-765.58202181,0.0003827,15]
[342952831,1732218634975,-1565.37195859,0.0003827,15]
[342952832,1732218634985,-765.58202181,0.0003827,15]
[342952833,1732218634995,-1565.37195859,0.0003827,15]
[342952834,1732218635005,-765.58202181,0.0003827,15]
[342952835,1732218635014,-1565.37195859,0.0003827,15]
[342952836,1732218635024,-765.58202181,0.0003827,15]
[342952837,1732218635034,-1565.37195859,0.0003827,15]
[342952838,1732218635044,-765.58202181,0.0003827,15]
[342952839,1732218635054,-1565.37195859,0.0003827,15]
[342952840,1732218635063,-765.58202181,0.0003827,15]
[342952841,1732218635073,-1565.37195859,0.0003827,15]
[342952842,1732218635083,-765.58202181,0.0003827,15]
[342952843,1732218635096,-1565.37195859,0.0003827,15]
[342952844,1732218635106,-765.58202181,0.0003827,15]
[342952845,1732218635116,-1565.37195859,0.0003827,15]
[342952846,1732218635126,-765.58202181,0.0003827,15]
[342952847,1732218635136,-1565.37195859,0.0003827,15]
[342952848,1732218635147,-765.58202181,0.0003827,15]
[342952849,1732218635156,-1565.37195859,0.0003827,15]
[342952850,1732218635169,-1565.37195859,0.0003827,15]
[342952851,1732218635180,-1565.37195859,0.0003827,15]
[342952852,1732218635190,-765.58202181,0.0003827,15]
[342952853,1732218635200,-1565.37195859,0.0003827,15]
[342952854,1732218635210,-765.58202181,0.0003827,15]
[342952855,1732218635219,-1565.37195859,0.0003827,15]
[342952856,1732218635229,-1565.37195859,0.0003827,15]
[342952857,1732218635240,-1565.37195859,0.0003827,15]
[342952858,1732218635250,-1565.37195859,0.0003827,15]
[342952859,1732218635259,-765.58202181,0.0003827,15]
[342952860,1732218635269,-1565.37195859,0.0003827,15]
[342952861,1732218635279,-765.58202181,0.0003827,15]
[342952862,1732218635289,-1565.37195859,0.0003827,15]
[342952863,1732218635299,-765.58202181,0.0003827,15]
[342952864,1732218635308,-1565.37195859,0.0003827,15]
[342952865,1732218635318,-1565.37195859,0.0003827,15]
[342952866,1732218635327,-1565.37195859,0.0003827,15]
[342952867,1732218635336,-1565.37195859,0.0003827,15]
[342952868,1732218635346,-1565.37195859,0.0003827,15]
[342952869,1732218635355,-1565.37195859,0.0003827,15]
[342952870,1732218635365,-1565.37195859,0.0003827,15]
[342952871,1732218635374,-1565.37195859,0.0003827,15]
[342952872,1732218635384,-1565.37195859,0.0003827,15]
[342952873,1732218635393,-1565.37195859,0.0003827,15]
[342952874,1732218635403,-1565.37195859,0.0003827,15]
[342952875,1732218635412,-1565.37195859,0.0003827,15]
[342952876,1732218635426,-1565.37195859,0.0003827,15]
[342952877,1732218635436,-1565.37195859,0.0003827,15]
[342952878,1732218635445,-1565.37195859,0.0003827,15]
[342952879,1732218635455,-1565.37195859,0.0003827,15]
[342952880,1732218635464,-765.58202181,0.0003827,15]
[342952881,1732218635474,-1491.70739584,0.0003827,15]
[342952882,1732218635483,-1491.70739584,0.0003827,15]
[342952883,1732218635493,-765.58202181,0.0003827,15]
[342952884,1732218635502,-1491.70739584,0.0003827,15]
[342952885,1732218635512,-765.58202181,0.0003827,15]
[342952886,1732218635522,-1491.70739584,0.0003827,15]
[342952887,1732218635532,-1491.70739584,0.0003827,15]
[342952888,1732218635541,-765.58202181,0.0003827,15]
[342952889,1732218635550,-1491.70739584,0.0003827,15]
[342952890,1732218635560,-765.58202181,0.0003827,15]
[342952891,1732218635570,-1491.70739584,0.0003827,15]
[342952892,1732218635580,-1491.70739584,0.0003827,15]
[342952893,1732218635589,-1491.70739584,0.0003827,15]
[342952894,1732218635599,-1491.70739584,0.0003827,15]
[342952895,1732218635609,-1491.70739584,0.0003827,15]
[342952896,1732218635620,-1491.70739584,0.0003827,15]
[342952897,1732218635630,-1491.70739584,0.0003827,15]
[342952898,1732218635639,-1491.70739584,0.0003827,15]
[342952899,1732218635649,-1491.70739584,0.0003827,15]
[342952900,1732218635657,-1491.70739584,0.0003827,15]
[342952901,1732218635669,-1491.70739584,0.0003827,15]
[342952902,1732218635679,-765.5820218,0.0003827,15]
[342952903,1732218635689,-500.0,0.00038356,11]
[342952904,1732218635698,-500.0,0.00038356,11]
[342952905,1732218635708,-500.0,0.00038356,11]
[342952906,1732218635717,-500.0,0.00038356,11]
[342952907,1732218635727,-500.0,0.00038356,11]
[342952908,1732218635737,-500.0,0.00038356,11]
[342952909,1732218635748,-590.5,0.00038356,11]
[342952910,1732218635757,-500.0,0.00038356,11]
[342952911,1732218635767,-500.0,0.00038356,11]
[342952912,1732218635777,-500.0,0.00038356,11]
[342952913,1732218635787,-500.0,0.00038356,11]
[342952914,1732218635796,-500.0,0.00038356,11]
[342952915,1732218635805,-500.0,0.00038356,11]
[342952916,1732218635814,-500.0,0.00038356,11]
[342952917,1732218635824,-500.0,0.00038356,11]
[342952918,1732218635834,-500.0,0.00038356,11]
[342952919,1732218635843,-500.0,0.00038356,11]
[342952920,1732218635853,-500.0,0.00038356,11]
[342952921,1732218635862,-500.0,0.00038356,11]
[342952922,1732218635872,-500.0,0.00038356,11]
[342952923,1732218635881,-500.0,0.00038356,11]
[342952924,1732218635891,-500.0,0.00038356,11]
[342952925,1732218635900,-500.0,0.00038356,11]
[342952926,1732218635910,-500.0,0.00038356,11]
[342952927,1732218635924,-500.0,0.00038356,11]
[342952928,1732218635933,-500.0,0.00038356,11]
[342952929,1732218635943,-500.0,0.00038356,11]
[342952930,1732218635952,-500.0,0.00038356,11]
[342952931,1732218636148,-500.0,0.00038356,11]
[342952932,1732218636158,-500.0,0.00038356,11]
[342952933,1732218636172,-500.0,0.00038356,11]
[342952934,1732218636183,-381.69335992,0.00038356,11]
[342952935,1732218636197,-500.0,0.00038356,11]
[342952936,1732218636207,-500.0,0.00038356,11]
[342952937,1732218636217,-500.0,0.00038356,11]
[342952938,1732218636227,-500.0,0.00038356,11]
[342952939,1732218636236,-500.0,0.00038356,11]
[342952940,1732218636246,-500.0,0.00038356,11]
[342952941,1732218636257,-500.0,0.00038356,11]
[342952942,1732218636267,-185.55294551,0.00038356,11]
[342952943,1732218636276,-500.0,0.00038356,11]
[342952944,1732218636286,-500.0,0.00038356,11]
[342952945,1732218636296,-500.0,0.00038356,11]
[342952946,1732218636305,-500.0,0.00038356,11]
[342952947,1732218636315,-700.0,0.00038356,11]
[342952948,1732218636325,-500.0,0.00038356,11]
[342952949,1732218636335,-500.0,0.00038356,11]
[342952950,1732218636345,-500.0,0.00038356,11]
[342952951,1732218636355,-441.03050383,0.00038356,11]
[342952952,1732218636365,-276.72777901,0.00038356,11]
[342952953,1732218636374,-500.0,0.00038356,11]
[342952954,1732218636383,-500.0,0.00038356,11]
[342952955,1732218636393,-500.0,0.00038356,11]
[342952956,1732218636403,-500.0,0.00038356,11]
[342952957,1732218636413,-500.0,0.00038356,11]
[342952958,1732218636426,-500.0,0.00038356,11]
[342952959,1732218636436,-500.0,0.00038356,11]
[342952960,1732218636445,-500.0,0.00038356,11]
[342952961,1732218636455,-500.0,0.00038356,11]
[342952962,1732218636464,-500.0,0.00038356,11]
[342952963,1732218636474,-500.0,0.00038356,11]
[342952964,1732218636484,-537.32,0.00038356,11]
[342952965,1732218636494,-500.0,0.00038356,11]
[342952966,1732218636505,-578.69,0.00038356,11]
[342952967,1732218636515,-500.0,0.00038356,11]
[342952968,1732218636525,-500.0,0.00038356,7]
[342952969,1732218636535,-500.0,0.00038356,11]
[342952970,1732218636544,-500.0,0.00038356,11]
[342952971,1732218636554,-500.0,0.00038356,11]
[342952972,1732218636563,-500.0,0.00038356,11]
[342952973,1732218636573,-500.0,0.00038356,11]
[342952974,1732218636582,-500.0,0.00038356,11]
[342952975,1732218636591,-500.0,0.00038356,11]
[342952976,1732218636600,-500.0,0.00038356,11]
[342952977,1732218636610,-500.0,0.00038356,11]
[342952978,1732218636620,-500.0,0.00038356,11]
[342952979,1732218636629,-500.0,0.00038356,11]
[342952980,1732218636638,-500.0,0.00038356,11]
[342952981,1732218636648,-500.0,0.00038356,11]
[342952982,1732218636657,-500.0,0.00038356,11]
[342952983,1732218636667,-500.0,0.00038356,11]
[342952984,1732218636679,-500.0,0.00038356,11]
[342952985,1732218636688,-500.0,0.00038356,11]
[342952986,1732218636697,-500.0,0.00038356,11]
[342952987,1732218636706,-500.0,0.00038356,11]
[342952988,1732218636715,-500.0,0.00038356,11]
[342952989,1732218636725,-500.0,0.00038356,11]
[342952990,1732218636734,-500.0,0.00038356,11]
[342952991,1732218636743,-500.0,0.00038356,11]
[342952992,1732218636753,-500.0,0.00038356,11]
[342952993,1732218636763,-500.0,0.00038356,11]
[342952994,1732218636772,-500.0,0.00038356,11]
[342952995,1732218636781,-500.0,0.00038356,11]
[342952996,1732218636790,-500.0,0.00038356,11]
[342952997,1732218636799,-500.0,0.00038356,11]
[342952998,1732218636808,-379.88850786,0.00038356,11]
[342952999,1732218636817,-500.0,0.00038356,11]
[342953000,1732218636826,-500.0,0.00038356,11]
[342953001,1732218636835,-500.0,0.00038356,11]
[342953002,1732218636845,-500.0,0.00038356,11]
[342953003,1732218636854,-500.0,0.00038356,11]
[342953004,1732218636863,-500.0,0.00038356,11]
[342953005,1732218636873,-308.37053465,0.00038356,11]
[342953006,1732218636882,-500.0,0.00038356,11]
[342953007,1732218636892,-500.0,0.00038356,11]
[342953008,1732218636901,-500.0,0.00038356,11]
[342953009,1732218636912,-500.0,0.00038356,11]
[342953010,1732218636924,-500.0,0.00038356,11]
[342953011,1732218636934,-500.0,0.00038356,11]
[342953012,1732218636943,-500.0,0.00038356,11]
[342953013,1732218636953,-500.0,0.00038356,11]
[342953014,1732218636962,-500.0,0.00038356,11]
[342953015,1732218636972,-500.0,0.00038356,11]
[342953016,1732218636981,-602.41029761,0.00038356,11]
[342953017,1732218636992,-500.0,0.00038356,11]
[342953018,1732218637005,-500.0,0.00038356,11]
[342953019,1732218637015,-500.0,0.00038356,11]
[342953020,1732218637024,-500.0,0.00038356,11]
[342953021,1732218637034,-500.0,0.00038356,11]
[342953022,1732218637043,-500.0,0.00038356,11]
[342953023,1732218637053,-639.45,0.00038356,11]
[342953024,1732218637063,-500.0,0.00038356,11]
[342953025,1732218637073,-500.0,0.00038356,11]
[342953026,1732218637083,-500.0,0.00038356,11]
[342953027,1732218637094,-500.0,0.00038356,11]
[342953028,1732218637105,-500.0,0.00038356,11]
[342953029,1732218637115,-500.0,0.00038356,11]
[342953030,1732218637124,-500.0,0.00038356,11]